[Event "*** Titled Tuesday Blitz"]
[Site "Chess.com"]
[Date "2020.05.05"]
[Round "7"]
[White "Vuk2000"]
[Black "adriangschnitzer"]
[Result "1-0"]
[WhiteElo "2641"]
[BlackElo "2441"]
[TimeControl "180+1"]
[EndTime "11:19:04 PDT"]
[Termination "Vuk2000 won on time"]

1. d4 {[%clk 0:03:00.9]} 1... Nf6 {[%clk 0:02:59.5]} 2. Bg5 {[%clk 0:03:00.1]}
2... Ne4 {[%clk 0:02:59.1]} 3. Bf4 {[%clk 0:03:00.1]} 3... c5 {[%clk 0:02:58.1]}
4. f3 {[%clk 0:02:59.7]} 4... Qa5+ {[%clk 0:02:57.3]} 5. c3 {[%clk 0:02:59.5]}
5... Nf6 {[%clk 0:02:57.8]} 6. d5 {[%clk 0:02:59.8]} 6... d6 {[%clk 0:02:57.7]}
7. e4 {[%clk 0:02:58.3]} 7... g6 {[%clk 0:02:57.8]} 8. Nd2 {[%clk 0:02:56.8]}
8... Bg7 {[%clk 0:02:58]} 9. Nc4 {[%clk 0:02:56.7]} 9... Qc7 {[%clk 0:02:57.9]}
10. a4 {[%clk 0:02:56.6]} 10... O-O {[%clk 0:02:57.3]} 11. Be2 {[%clk
0:02:52.7]} 11... b6 {[%clk 0:02:56.6]} 12. Qd2 {[%clk 0:02:46.2]} 12... Ba6
{[%clk 0:02:55.9]} 13. Nh3 {[%clk 0:02:45.1]} 13... Nbd7 {[%clk 0:02:51.9]} 14.
Nxd6 {[%clk 0:02:31.3]} 14... exd6 {[%clk 0:02:32.2]} 15. Bxa6 {[%clk 0:02:30]}
15... Rfe8 {[%clk 0:02:25.6]} 16. O-O {[%clk 0:02:23.9]} 16... Nh5 {[%clk
0:02:19.2]} 17. Bh6 {[%clk 0:02:22.8]} 17... Ne5 {[%clk 0:02:15.1]} 18. Rae1
{[%clk 0:02:21.1]} 18... Qe7 {[%clk 0:02:03.9]} 19. Bb5 {[%clk 0:02:06.6]} 19...
Rf8 {[%clk 0:02:00.7]} 20. Bxg7 {[%clk 0:01:58.1]} 20... Kxg7 {[%clk 0:01:54.3]}
21. f4 {[%clk 0:01:48.2]} 21... Ng4 {[%clk 0:01:51.9]} 22. Be2 {[%clk
0:01:32.3]} 22... Ngf6 {[%clk 0:01:36]} 23. e5 {[%clk 0:00:51.7]} 23... dxe5
{[%clk 0:01:29.9]} 24. Bxh5 {[%clk 0:00:51.3]} 24... Nxh5 {[%clk 0:01:28.2]} 25.
fxe5 {[%clk 0:00:50.6]} 25... Rad8 {[%clk 0:01:08.5]} 26. g4 {[%clk 0:00:42.4]}
26... Qh4 {[%clk 0:00:48.6]} 27. Qg2 {[%clk 0:00:39]} 27... Rxd5 {[%clk
0:00:40.7]} 28. Qxd5 {[%clk 0:00:37.8]} 28... Qxg4+ {[%clk 0:00:30.6]} 29. Qg2
{[%clk 0:00:37.4]} 29... Qxa4 {[%clk 0:00:29.7]} 30. Re4 {[%clk 0:00:35.9]}
30... Qa2 {[%clk 0:00:19.8]} 31. Rh4 {[%clk 0:00:35.3]} 31... Kh8 {[%clk
0:00:18.4]} 32. Ng5 {[%clk 0:00:35.6]} 32... f5 {[%clk 0:00:13.3]} 33. e6 {[%clk
0:00:33.7]} 33... f4 {[%clk 0:00:10.2]} 34. Nf7+ {[%clk 0:00:33.4]} 34... Rxf7
{[%clk 0:00:09.2]} 35. exf7 {[%clk 0:00:32.6]} 35... Qxf7 {[%clk 0:00:10.1]} 36.
Qg5 {[%clk 0:00:30.6]} 36... f3 {[%clk 0:00:05.8]} 37. Qe5+ {[%clk 0:00:30.3]}
37... Kg8 {[%clk 0:00:06]} 38. Rxh5 {[%clk 0:00:30.5]} 38... gxh5 {[%clk
0:00:06.9]} 39. Qg3+ {[%clk 0:00:30.3]} 39... Kh8 {[%clk 0:00:04.9]} 40. Rxf3
{[%clk 0:00:30.1]} 40... Qe8 {[%clk 0:00:05.3]} 41. h3 {[%clk 0:00:25.5]} 41...
h4 {[%clk 0:00:05.3]} 42. Qf4 {[%clk 0:00:23.2]} 1-0

[Event "*** Titled Tuesday Blitz"]
[Site "Chess.com"]
[Date "2020.05.05"]
[Round "7"]
[White "MiroVlasenko"]
[Black "youngKID"]
[Result "0-1"]
[WhiteElo "2578"]
[BlackElo "2786"]
[TimeControl "180+1"]
[EndTime "11:19:05 PDT"]
[Termination "youngKID won by resignation"]

1. e4 {[%clk 0:03:00.9]} 1... e5 {[%clk 0:02:58.4]} 2. Nc3 {[%clk 0:03:01.4]}
2... Nc6 {[%clk 0:02:56.8]} 3. Bc4 {[%clk 0:03:01.1]} 3... Nf6 {[%clk
0:02:56.2]} 4. d3 {[%clk 0:03:00.7]} 4... Na5 {[%clk 0:02:55.9]} 5. Nge2 {[%clk
0:03:00.7]} 5... d6 {[%clk 0:02:55.4]} 6. Bg5 {[%clk 0:02:56.2]} 6... Be7 {[%clk
0:02:54.9]} 7. Ng3 {[%clk 0:02:45.7]} 7... h6 {[%clk 0:02:41.3]} 8. Be3 {[%clk
0:02:36.6]} 8... Ng4 {[%clk 0:02:38.2]} 9. Bd2 {[%clk 0:02:36.2]} 9... c6 {[%clk
0:02:31.8]} 10. f3 {[%clk 0:02:31.6]} 10... Nf6 {[%clk 0:02:24.9]} 11. Qe2
{[%clk 0:02:29.4]} 11... O-O {[%clk 0:02:21.1]} 12. Bb3 {[%clk 0:02:24.2]} 12...
b5 {[%clk 0:02:19.8]} 13. O-O {[%clk 0:02:19.8]} 13... Re8 {[%clk 0:02:14.4]}
14. f4 {[%clk 0:02:16.7]} 14... Bf8 {[%clk 0:02:11]} 15. fxe5 {[%clk 0:02:14.8]}
15... dxe5 {[%clk 0:02:10.8]} 16. Nf5 {[%clk 0:02:11.3]} 16... Nb7 {[%clk
0:01:24.8]} 17. Rf3 {[%clk 0:02:05.2]} 17... a5 {[%clk 0:01:22.2]} 18. Raf1
{[%clk 0:01:53.3]} 18... Bxf5 {[%clk 0:01:04.8]} 19. Rxf5 {[%clk 0:01:42.2]}
19... a4 {[%clk 0:01:04.8]} 20. Rxf6 {[%clk 0:01:42.6]} 20... axb3 {[%clk
0:00:56.2]} 21. Rxf7 {[%clk 0:00:58.6]} 21... Nd6 {[%clk 0:00:43.8]} 22. R7f2
{[%clk 0:00:42]} 22... bxa2 {[%clk 0:00:25]} 23. Ra1 {[%clk 0:00:41]} 23... b4
{[%clk 0:00:23.4]} 24. Nxa2 {[%clk 0:00:41.3]} 24... Nb5 {[%clk 0:00:23.5]} 25.
Qh5 {[%clk 0:00:29.4]} 25... Bc5 {[%clk 0:00:20.9]} 26. Rf1 {[%clk 0:00:22.3]}
26... Rxa2 {[%clk 0:00:16.6]} 27. Qf7+ {[%clk 0:00:21.8]} 27... Kh7 {[%clk
0:00:15.8]} 28. Qxa2 {[%clk 0:00:22.3]} 28... Rf8 {[%clk 0:00:12.7]} 29. Qc4
{[%clk 0:00:20.2]} 29... Qb6 {[%clk 0:00:08.7]} 30. Be1 {[%clk 0:00:19.4]} 30...
Nd6 {[%clk 0:00:08.6]} 31. Qe6 {[%clk 0:00:19.2]} 31... Nb5 {[%clk 0:00:04.9]}
32. Qxe5 {[%clk 0:00:19.2]} 32... Bd4 {[%clk 0:00:04.4]} 33. Qe6 {[%clk
0:00:19.2]} 33... Qc5 {[%clk 0:00:03.2]} 34. c4 {[%clk 0:00:18]} 34... bxc3
{[%clk 0:00:03.2]} 35. bxc3 {[%clk 0:00:17.9]} 35... Nxc3 {[%clk 0:00:03.9]} 36.
g4 {[%clk 0:00:16.9]} 36... Nd1 {[%clk 0:00:03.1]} 37. Kg2 {[%clk 0:00:16.4]}
37... Nxf2 {[%clk 0:00:02.5]} 38. h4 {[%clk 0:00:16.7]} 38... Qc2 {[%clk
0:00:02.5]} 39. h5 {[%clk 0:00:16.4]} 39... Nxd3+ {[%clk 0:00:02.8]} 40. Kh3
{[%clk 0:00:16.3]} 40... Rxf1 {[%clk 0:00:03.7]} 41. Qg6+ {[%clk 0:00:16.5]}
41... Kg8 {[%clk 0:00:03.8]} 42. Qe6+ {[%clk 0:00:16.8]} 42... Rf7 {[%clk
0:00:04.4]} 43. Qe8+ {[%clk 0:00:16.6]} 43... Rf8 {[%clk 0:00:04.8]} 0-1

[Event "*** Titled Tuesday Blitz"]
[Site "Chess.com"]
[Date "2020.05.05"]
[Round "7"]
[White "Morshynska"]
[Black "The_Machine04"]
[Result "0-1"]
[WhiteElo "2120"]
[BlackElo "2296"]
[TimeControl "180+1"]
[EndTime "11:19:05 PDT"]
[Termination "The_Machine04 won by resignation"]

1. e4 {[%clk 0:03:00.9]} 1... d6 {[%clk 0:02:57]} 2. d4 {[%clk 0:02:58.5]} 2...
Nf6 {[%clk 0:02:55.8]} 3. Nc3 {[%clk 0:02:56.1]} 3... e5 {[%clk 0:02:55.6]} 4.
Nge2 {[%clk 0:02:52.2]} 4... Nc6 {[%clk 0:02:54.7]} 5. f3 {[%clk 0:02:39.6]}
5... g6 {[%clk 0:02:48.1]} 6. Be3 {[%clk 0:02:38.5]} 6... Bg7 {[%clk 0:02:47]}
7. Qd2 {[%clk 0:02:37.1]} 7... O-O {[%clk 0:02:39.7]} 8. g4 {[%clk 0:02:28]}
8... exd4 {[%clk 0:02:33.5]} 9. Nxd4 {[%clk 0:02:28.9]} 9... Nxd4 {[%clk
0:02:34]} 10. Bxd4 {[%clk 0:02:28.9]} 10... Re8 {[%clk 0:02:30.4]} 11. O-O-O
{[%clk 0:02:25.8]} 11... a6 {[%clk 0:02:21.5]} 12. h4 {[%clk 0:02:22.9]} 12...
h5 {[%clk 0:02:21.1]} 13. Bxf6 {[%clk 0:02:10.5]} 13... Qxf6 {[%clk 0:02:13.3]}
14. gxh5 {[%clk 0:02:07.7]} 14... gxh5 {[%clk 0:02:12.5]} 15. Rg1 {[%clk
0:01:58.1]} 15... Kh8 {[%clk 0:02:06.2]} 16. Rg5 {[%clk 0:01:40]} 16... Bh6
{[%clk 0:01:35]} 17. Nd5 {[%clk 0:01:05.4]} 17... Bxg5 {[%clk 0:01:23.6]} 18.
hxg5 {[%clk 0:01:06.3]} 18... Qxf3 {[%clk 0:01:11.5]} 19. g6 {[%clk 0:00:38.2]}
19... Kg7 {[%clk 0:00:56.9]} 20. Bg2 {[%clk 0:00:20]} 20... Qg3 {[%clk
0:00:49.7]} 21. gxf7 {[%clk 0:00:18.4]} 21... Kxf7 {[%clk 0:00:47.9]} 22. Rf1+
{[%clk 0:00:14.9]} 22... Kg7 {[%clk 0:00:47.3]} 23. Rf3 {[%clk 0:00:10.7]} 23...
Qg6 {[%clk 0:00:43.8]} 24. Qd4+ {[%clk 0:00:07.8]} 24... Re5 {[%clk 0:00:42.4]}
25. Bf1 {[%clk 0:00:06.7]} 25... Bg4 {[%clk 0:00:40.8]} 26. Rf2 {[%clk
0:00:05.6]} 26... Rf8 {[%clk 0:00:38]} 27. Rxf8 {[%clk 0:00:02.7]} 27... Kxf8
{[%clk 0:00:38.9]} 28. Bd3 {[%clk 0:00:02.6]} 28... Qg5+ {[%clk 0:00:37.2]} 29.
Kb1 {[%clk 0:00:02.4]} 29... Be6 {[%clk 0:00:32.4]} 30. a4 {[%clk 0:00:01.8]}
30... Bxd5 {[%clk 0:00:31.5]} 31. exd5 {[%clk 0:00:02.7]} 31... Ke7 {[%clk
0:00:30.7]} 32. c4 {[%clk 0:00:02.1]} 32... h4 {[%clk 0:00:22.3]} 33. c5 {[%clk
0:00:02.3]} 33... Rxd5 {[%clk 0:00:19.5]} 34. cxd6+ {[%clk 0:00:03.2]} 34...
cxd6 {[%clk 0:00:18.3]} 35. Qe4+ {[%clk 0:00:03.4]} 35... Re5 {[%clk 0:00:18.6]}
36. Qxb7+ {[%clk 0:00:03.2]} 36... Kf6 {[%clk 0:00:18.5]} 37. Bc4 {[%clk
0:00:03.1]} 37... Re7 {[%clk 0:00:14.5]} 38. Qd5 {[%clk 0:00:02.3]} 38... Qxd5
{[%clk 0:00:14]} 39. Bxd5 {[%clk 0:00:02.1]} 39... h3 {[%clk 0:00:14.9]} 0-1

[Event "*** Titled Tuesday Blitz"]
[Site "Chess.com"]
[Date "2020.05.05"]
[Round "7"]
[White "Ranindu2003"]
[Black "Olga_Zhuravleva"]
[Result "1-0"]
[WhiteElo "2483"]
[BlackElo "2263"]
[TimeControl "180+1"]
[EndTime "11:19:07 PDT"]
[Termination "Ranindu2003 won by resignation"]

1. d4 {[%clk 0:03:00.9]} 1... Nf6 {[%clk 0:02:58.1]} 2. Bg5 {[%clk 0:03:01.4]}
2... Ne4 {[%clk 0:02:44.1]} 3. Bf4 {[%clk 0:03:00.2]} 3... e6 {[%clk 0:02:41.5]}
4. f3 {[%clk 0:02:54.6]} 4... Nf6 {[%clk 0:02:40.5]} 5. e4 {[%clk 0:02:49.9]}
5... d6 {[%clk 0:02:40.5]} 6. Nc3 {[%clk 0:02:48.7]} 6... b6 {[%clk 0:02:40.6]}
7. Qd2 {[%clk 0:02:48.2]} 7... Bb7 {[%clk 0:02:40.2]} 8. O-O-O {[%clk
0:02:48.2]} 8... h6 {[%clk 0:02:36.2]} 9. Be3 {[%clk 0:02:47.9]} 9... Nbd7
{[%clk 0:02:29.7]} 10. g4 {[%clk 0:02:39.2]} 10... c5 {[%clk 0:02:26.1]} 11.
Nge2 {[%clk 0:02:34.2]} 11... cxd4 {[%clk 0:02:23.3]} 12. Nxd4 {[%clk
0:02:35.1]} 12... Nc5 {[%clk 0:02:22.7]} 13. Bb5+ {[%clk 0:02:33.4]} 13... Nfd7
{[%clk 0:02:20]} 14. b4 {[%clk 0:02:06.6]} 14... Na6 {[%clk 0:02:18.7]} 15. a3
{[%clk 0:01:49.7]} 15... Be7 {[%clk 0:02:04.2]} 16. Nc6 {[%clk 0:01:41.9]} 16...
Bxc6 {[%clk 0:02:02.9]} 17. Bxc6 {[%clk 0:01:42.8]} 17... Rc8 {[%clk 0:02:01.5]}
18. Bb7 {[%clk 0:01:39.9]} 18... Qc7 {[%clk 0:01:53.1]} 19. Bxc8 {[%clk
0:01:33.3]} 19... Qxc8 {[%clk 0:01:51]} 20. Nb5 {[%clk 0:01:26]} 20... O-O
{[%clk 0:01:21.2]} 21. Nxd6 {[%clk 0:01:23.2]} 21... Bxd6 {[%clk 0:01:12.3]} 22.
Qxd6 {[%clk 0:01:24.1]} 22... Qc3 {[%clk 0:01:12.6]} 23. Bd4 {[%clk 0:01:19.6]}
23... Qxa3+ {[%clk 0:01:10]} 24. Bb2 {[%clk 0:01:19.5]} 24... Qe3+ {[%clk
0:01:09.6]} 25. Kb1 {[%clk 0:01:15.9]} 25... Nf6 {[%clk 0:01:00.6]} 26. Rhe1
{[%clk 0:01:04.8]} 26... Qxf3 {[%clk 0:00:47.5]} 27. Qd4 {[%clk 0:00:54]} 27...
Rc8 {[%clk 0:00:25.4]} 28. h4 {[%clk 0:00:37.9]} 28... Qxg4 {[%clk 0:00:21.5]}
29. Rg1 {[%clk 0:00:36.6]} 29... Qe2 {[%clk 0:00:20.2]} 30. Rd2 {[%clk
0:00:23.3]} 30... Qxe4 {[%clk 0:00:20.3]} 31. Qxf6 {[%clk 0:00:17.4]} 31... Qe1+
{[%clk 0:00:19.6]} 32. Rxe1 {[%clk 0:00:17.4]} 32... gxf6 {[%clk 0:00:20.1]} 33.
Bxf6 {[%clk 0:00:17.8]} 33... Nxb4 {[%clk 0:00:19.3]} 34. Rg1+ {[%clk
0:00:18.3]} 34... Kf8 {[%clk 0:00:19.4]} 35. Rdg2 {[%clk 0:00:18.3]} 35... Ke8
{[%clk 0:00:18.4]} 36. Rg8+ {[%clk 0:00:17.9]} 36... Kd7 {[%clk 0:00:19]} 37.
Rd1+ {[%clk 0:00:18]} 37... Kc7 {[%clk 0:00:18.6]} 38. Rxc8+ {[%clk 0:00:17.9]}
38... Kxc8 {[%clk 0:00:18.9]} 39. Rd8+ {[%clk 0:00:18.6]} 39... Kc7 {[%clk
0:00:18.8]} 40. Rh8 {[%clk 0:00:19.5]} 40... Nd5 {[%clk 0:00:18.7]} 41. Be5+
{[%clk 0:00:20]} 41... Kc6 {[%clk 0:00:18.1]} 42. Rxh6 {[%clk 0:00:20.7]} 42...
a5 {[%clk 0:00:14.1]} 43. Bb2 {[%clk 0:00:20.6]} 1-0

[Event "*** Titled Tuesday Blitz"]
[Site "Chess.com"]
[Date "2020.05.05"]
[Round "7"]
[White "Sven_Tica"]
[Black "WPWPWP-2015"]
[Result "1-0"]
[WhiteElo "2698"]
[BlackElo "2441"]
[TimeControl "180+1"]
[EndTime "11:19:08 PDT"]
[Termination "Sven_Tica won on time"]

1. d4 {[%clk 0:03:00.9]} 1... d5 {[%clk 0:02:57.5]} 2. c4 {[%clk 0:03:01.5]}
2... c6 {[%clk 0:02:57.4]} 3. Nf3 {[%clk 0:03:02.1]} 3... Nf6 {[%clk 0:02:57.6]}
4. Qc2 {[%clk 0:03:02.7]} 4... dxc4 {[%clk 0:02:56.5]} 5. Qxc4 {[%clk
0:03:03.6]} 5... Bf5 {[%clk 0:02:56.4]} 6. Nbd2 {[%clk 0:03:04.1]} 6... Nbd7
{[%clk 0:02:55.6]} 7. g3 {[%clk 0:03:04.8]} 7... e6 {[%clk 0:02:55.4]} 8. Bg2
{[%clk 0:03:05.5]} 8... Be7 {[%clk 0:02:55.4]} 9. O-O {[%clk 0:03:06.3]} 9...
O-O {[%clk 0:02:55.2]} 10. Qb3 {[%clk 0:03:07.1]} 10... Qb6 {[%clk 0:02:54.2]}
11. Nc4 {[%clk 0:03:08]} 11... Qxb3 {[%clk 0:02:53.5]} 12. axb3 {[%clk
0:03:08.9]} 12... Be4 {[%clk 0:02:44.2]} 13. Bf4 {[%clk 0:03:09.1]} 13... Nd5
{[%clk 0:02:34.4]} 14. Bd6 {[%clk 0:03:09.2]} 14... Rfe8 {[%clk 0:02:11]} 15.
Rfc1 {[%clk 0:02:56.6]} 15... N7b6 {[%clk 0:01:55.9]} 16. Bxe7 {[%clk
0:02:46.8]} 16... Rxe7 {[%clk 0:01:54]} 17. Nfe5 {[%clk 0:02:47.2]} 17... Bxg2
{[%clk 0:01:48.7]} 18. Kxg2 {[%clk 0:02:48.1]} 18... Nc8 {[%clk 0:01:42.1]} 19.
e3 {[%clk 0:02:45.5]} 19... f6 {[%clk 0:01:36.6]} 20. Nd3 {[%clk 0:02:42.8]}
20... Ndb6 {[%clk 0:01:19.5]} 21. Na5 {[%clk 0:02:40.3]} 21... Nd6 {[%clk
0:01:18]} 22. Nc5 {[%clk 0:02:36.4]} 22... e5 {[%clk 0:01:16.2]} 23. dxe5 {[%clk
0:02:30.7]} 23... fxe5 {[%clk 0:00:57.1]} 24. Rd1 {[%clk 0:02:31]} 24... Nbc8
{[%clk 0:00:55.2]} 25. Nc4 {[%clk 0:02:17]} 25... Nxc4 {[%clk 0:00:54.5]} 26.
Rd8+ {[%clk 0:02:15.6]} 26... Kf7 {[%clk 0:00:53.4]} 27. bxc4 {[%clk 0:02:15.9]}
27... a5 {[%clk 0:00:42.7]} 28. Ne4 {[%clk 0:02:07.2]} 28... Re8 {[%clk
0:00:14.7]} 29. Rxc8 {[%clk 0:01:46.8]} 29... Rexc8 {[%clk 0:00:12.8]} 30. Nd6+
{[%clk 0:01:47.4]} 30... Ke6 {[%clk 0:00:12.6]} 31. Nxc8 {[%clk 0:01:48.3]}
31... Rxc8 {[%clk 0:00:12.2]} 32. Rxa5 {[%clk 0:01:49.1]} 32... Kd6 {[%clk
0:00:10.9]} 33. Kf3 {[%clk 0:01:46.6]} 33... Rf8+ {[%clk 0:00:10.2]} 34. Ke2
{[%clk 0:01:46.9]} 34... e4 {[%clk 0:00:10.3]} 35. Rg5 {[%clk 0:01:42.1]} 35...
g6 {[%clk 0:00:09.9]} 36. Ra5 {[%clk 0:01:36.1]} 36... b6 {[%clk 0:00:09]} 37.
Ra7 {[%clk 0:01:35.7]} 37... h5 {[%clk 0:00:08.8]} 38. h4 {[%clk 0:01:31.9]}
38... Kc5 {[%clk 0:00:08.3]} 39. Re7 {[%clk 0:01:23.9]} 39... Kxc4 {[%clk
0:00:08.2]} 40. Rxe4+ {[%clk 0:01:23.7]} 40... Kd5 {[%clk 0:00:05.8]} 41. Rd4+
{[%clk 0:01:20.9]} 41... Ke5 {[%clk 0:00:05.6]} 42. f4+ {[%clk 0:01:21]} 42...
Ke6 {[%clk 0:00:05.7]} 43. e4 {[%clk 0:01:21.1]} 43... c5 {[%clk 0:00:06.1]} 44.
Rd5 {[%clk 0:01:21]} 44... Ra8 {[%clk 0:00:05.9]} 45. Kd2 {[%clk 0:01:16.9]}
45... Ra4 {[%clk 0:00:05.1]} 46. Re5+ {[%clk 0:01:14.5]} 46... Kf7 {[%clk
0:00:03.7]} 47. f5 {[%clk 0:01:11.5]} 47... Rb4 {[%clk 0:00:03.7]} 48. Kc3
{[%clk 0:01:08.3]} 48... gxf5 {[%clk 0:00:03.9]} 49. Rxf5+ {[%clk 0:01:08]}
49... Kg6 {[%clk 0:00:03.3]} 50. Rg5+ {[%clk 0:01:08.6]} 50... Kh6 {[%clk
0:00:03]} 51. Re5 {[%clk 0:01:04.2]} 51... Kg6 {[%clk 0:00:01.7]} 52. Rg5+
{[%clk 0:01:02.4]} 52... Kh6 {[%clk 0:00:02]} 53. e5 {[%clk 0:01:03.1]} 53...
Re4 {[%clk 0:00:02]} 54. Kd3 {[%clk 0:01:00.4]} 54... Rd4+ {[%clk 0:00:02.5]}
55. Ke3 {[%clk 0:01:00.8]} 55... Rb4 {[%clk 0:00:02.7]} 56. e6 {[%clk
0:00:59.4]} 56... Rb3+ {[%clk 0:00:02.8]} 57. Kf4 {[%clk 0:00:58.1]} 57... Rxb2
{[%clk 0:00:03.2]} 58. e7 {[%clk 0:00:57.8]} 58... Re2 {[%clk 0:00:03.3]} 59.
Re5 {[%clk 0:00:57.1]} 59... Rf2+ {[%clk 0:00:03.7]} 60. Ke3 {[%clk 0:00:57.7]}
60... Rf1 {[%clk 0:00:03.7]} 61. e8=Q {[%clk 0:00:57.9]} 1-0

[Event "*** Titled Tuesday Blitz"]
[Site "Chess.com"]
[Date "2020.05.05"]
[Round "7"]
[White "binbin239"]
[Black "atwalcb"]
[Result "1-0"]
[WhiteElo "2429"]
[BlackElo "2234"]
[TimeControl "180+1"]
[EndTime "11:19:09 PDT"]
[Termination "binbin239 won by resignation"]

1. d4 {[%clk 0:03:00.8]} 1... d6 {[%clk 0:02:44.6]} 2. c4 {[%clk 0:03:01.3]}
2... e5 {[%clk 0:02:44.2]} 3. dxe5 {[%clk 0:02:59]} 3... dxe5 {[%clk 0:02:44.4]}
4. Qc2 {[%clk 0:02:59.4]} 4... Nc6 {[%clk 0:02:41.2]} 5. Nf3 {[%clk 0:02:58.8]}
5... Nb4 {[%clk 0:02:30.8]} 6. Qa4+ {[%clk 0:02:56]} 6... Bd7 {[%clk 0:02:29.9]}
7. Qb3 {[%clk 0:02:56]} 7... Bf5 {[%clk 0:02:23.3]} 8. Na3 {[%clk 0:02:55.6]}
8... f6 {[%clk 0:02:22.7]} 9. Bd2 {[%clk 0:02:53]} 9... a5 {[%clk 0:02:19.1]}
10. g3 {[%clk 0:02:48.6]} 10... Bc5 {[%clk 0:02:15.6]} 11. Bg2 {[%clk
0:02:45.2]} 11... c6 {[%clk 0:02:12.3]} 12. O-O {[%clk 0:02:44]} 12... Ne7
{[%clk 0:02:08.5]} 13. Rad1 {[%clk 0:02:42.2]} 13... Qc7 {[%clk 0:01:57]} 14.
Nh4 {[%clk 0:02:42.2]} 14... a4 {[%clk 0:01:37.5]} 15. Qf3 {[%clk 0:02:32.1]}
15... Be6 {[%clk 0:01:37.7]} 16. b3 {[%clk 0:02:16.9]} 16... Nxa2 {[%clk
0:01:29.4]} 17. Nb1 {[%clk 0:02:13]} 17... Nb4 {[%clk 0:01:22.6]} 18. bxa4
{[%clk 0:02:11.3]} 18... Bxc4 {[%clk 0:01:15.2]} 19. Rc1 {[%clk 0:02:11.5]}
19... Bd5 {[%clk 0:01:08.8]} 20. e4 {[%clk 0:02:10.6]} 20... Be6 {[%clk
0:00:56.6]} 21. Rxc5 {[%clk 0:02:09.6]} 21... Na6 {[%clk 0:00:56.1]} 22. Rcc1
{[%clk 0:02:08.4]} 22... O-O {[%clk 0:00:52.7]} 23. Nf5 {[%clk 0:02:07.9]} 23...
Nxf5 {[%clk 0:00:52.6]} 24. exf5 {[%clk 0:02:08.1]} 24... Bd5 {[%clk 0:00:52.8]}
25. Qe2 {[%clk 0:01:48.5]} 25... Bxg2 {[%clk 0:00:48.9]} 26. Kxg2 {[%clk
0:01:48.9]} 26... Rfd8 {[%clk 0:00:47.2]} 27. Rfd1 {[%clk 0:01:47]} 27... Kh8
{[%clk 0:00:44.6]} 28. Nc3 {[%clk 0:01:45.8]} 28... Nc5 {[%clk 0:00:40.7]} 29.
Be3 {[%clk 0:01:43.9]} 29... Nxa4 {[%clk 0:00:37.2]} 30. Rxd8+ {[%clk
0:01:31.5]} 30... Qxd8 {[%clk 0:00:35.7]} 31. Nxa4 {[%clk 0:01:31.1]} 31... Rxa4
{[%clk 0:00:35.5]} 32. Rd1 {[%clk 0:01:31.7]} 32... Qc7 {[%clk 0:00:31.1]} 33.
Qc2 {[%clk 0:01:31]} 33... Ra8 {[%clk 0:00:29.9]} 34. Qb3 {[%clk 0:01:25.6]}
34... h6 {[%clk 0:00:26.8]} 35. Qe6 {[%clk 0:01:20.2]} 35... Rd8 {[%clk
0:00:24]} 36. Rb1 {[%clk 0:01:14.4]} 36... b5 {[%clk 0:00:22.4]} 37. Rc1 {[%clk
0:01:12.2]} 37... Qb7 {[%clk 0:00:18.6]} 38. Qxc6 {[%clk 0:01:09]} 38... Qxc6+
{[%clk 0:00:14.9]} 39. Rxc6 {[%clk 0:01:08.9]} 39... Kh7 {[%clk 0:00:13.9]} 40.
Rb6 {[%clk 0:01:08.7]} 40... Rd5 {[%clk 0:00:14.1]} 41. Rb7 {[%clk 0:01:09]}
41... h5 {[%clk 0:00:14.3]} 42. h4 {[%clk 0:01:08.9]} 42... e4 {[%clk
0:00:14.5]} 43. Bf4 {[%clk 0:01:01.3]} 43... Rxf5 {[%clk 0:00:15.4]} 44. Bd6
{[%clk 0:01:01.5]} 44... Rd5 {[%clk 0:00:15.4]} 45. Bf8 {[%clk 0:01:01.7]} 45...
Kg8 {[%clk 0:00:14.1]} 46. Bxg7 {[%clk 0:01:01.6]} 46... f5 {[%clk 0:00:14.3]}
47. Bh6 {[%clk 0:01:00.6]} 47... Kh8 {[%clk 0:00:13.6]} 48. Bf4 {[%clk
0:01:00.7]} 48... Kg8 {[%clk 0:00:13.8]} 49. Be3 {[%clk 0:01:00.6]} 49... Kf8
{[%clk 0:00:13.5]} 50. Rh7 {[%clk 0:01:00]} 50... Kg8 {[%clk 0:00:13.4]} 51.
Rxh5 {[%clk 0:01:00]} 51... Kg7 {[%clk 0:00:13.3]} 52. Rg5+ {[%clk 0:01:00]}
52... Kf7 {[%clk 0:00:13.7]} 53. Rh5 {[%clk 0:00:58.9]} 53... Kg7 {[%clk
0:00:13.7]} 54. Rh6 {[%clk 0:00:59.5]} 54... Rd3 {[%clk 0:00:11.7]} 55. Rb6
{[%clk 0:00:59.7]} 55... Rb3 {[%clk 0:00:12]} 56. h5 {[%clk 0:01:00.1]} 56...
Kh7 {[%clk 0:00:12.1]} 57. h6 {[%clk 0:01:00]} 57... Rb1 {[%clk 0:00:12.3]} 58.
Bg5 {[%clk 0:01:00]} 58... b4 {[%clk 0:00:10.1]} 59. Rb7+ {[%clk 0:01:00.3]}
59... Kg6 {[%clk 0:00:10.5]} 60. h7 {[%clk 0:01:00.9]} 1-0

[Event "*** Titled Tuesday Blitz"]
[Site "Chess.com"]
[Date "2020.05.05"]
[Round "7"]
[White "yoolund"]
[Black "ajian"]
[Result "0-1"]
[WhiteElo "2552"]
[BlackElo "2408"]
[TimeControl "180+1"]
[EndTime "11:19:10 PDT"]
[Termination "ajian won by resignation"]

1. d4 {[%clk 0:03:00.9]} 1... Nf6 {[%clk 0:02:59.7]} 2. Bg5 {[%clk 0:03:00.5]}
2... d5 {[%clk 0:02:59.4]} 3. Bxf6 {[%clk 0:03:00]} 3... gxf6 {[%clk 0:03:00.3]}
4. c4 {[%clk 0:02:59.5]} 4... dxc4 {[%clk 0:02:59.6]} 5. e3 {[%clk 0:02:59.4]}
5... e6 {[%clk 0:02:59]} 6. Bxc4 {[%clk 0:02:59.1]} 6... Nd7 {[%clk 0:02:50]} 7.
Ne2 {[%clk 0:02:58.5]} 7... c5 {[%clk 0:02:49.9]} 8. O-O {[%clk 0:02:57.5]} 8...
Bg7 {[%clk 0:02:47.9]} 9. Nbc3 {[%clk 0:02:57]} 9... O-O {[%clk 0:02:39.6]} 10.
d5 {[%clk 0:02:57.2]} 10... Nb6 {[%clk 0:02:34.1]} 11. b3 {[%clk 0:02:55.6]}
11... f5 {[%clk 0:02:29]} 12. Rc1 {[%clk 0:02:54.6]} 12... Qg5 {[%clk
0:02:18.9]} 13. dxe6 {[%clk 0:02:47.1]} 13... fxe6 {[%clk 0:02:17.9]} 14. Bd3
{[%clk 0:02:12.5]} 14... Bd7 {[%clk 0:02:12.1]} 15. Ng3 {[%clk 0:02:06.9]} 15...
Bc6 {[%clk 0:02:02.5]} 16. Qh5 {[%clk 0:02:05.1]} 16... Qg6 {[%clk 0:01:53.7]}
17. Qxg6 {[%clk 0:02:02]} 17... hxg6 {[%clk 0:01:53.7]} 18. Rfd1 {[%clk
0:02:01.5]} 18... Rac8 {[%clk 0:01:46.5]} 19. Bb5 {[%clk 0:01:55.3]} 19... a6
{[%clk 0:01:09.5]} 20. Bxc6 {[%clk 0:01:52.4]} 20... Rxc6 {[%clk 0:01:10.4]} 21.
Nge2 {[%clk 0:01:50.8]} 21... Rcc8 {[%clk 0:01:04.4]} 22. Nf4 {[%clk 0:01:48]}
22... Kf7 {[%clk 0:01:00.2]} 23. a4 {[%clk 0:01:32.6]} 23... Rfd8 {[%clk
0:00:51.4]} 24. a5 {[%clk 0:01:20.2]} 24... Bxc3 {[%clk 0:00:35.9]} 25. axb6
{[%clk 0:01:19.9]} 25... g5 {[%clk 0:00:26.1]} 26. Nd3 {[%clk 0:01:12.2]} 26...
Bf6 {[%clk 0:00:18.2]} 27. h4 {[%clk 0:01:00.3]} 27... gxh4 {[%clk 0:00:17.9]}
28. Nf4 {[%clk 0:00:59.7]} 28... Rc6 {[%clk 0:00:09.8]} 29. b4 {[%clk 0:00:44]}
29... Rxd1+ {[%clk 0:00:08.3]} 30. Rxd1 {[%clk 0:00:43.7]} 30... cxb4 {[%clk
0:00:08.8]} 31. Rd7+ {[%clk 0:00:43.6]} 31... Be7 {[%clk 0:00:08.3]} 32. Rxb7
{[%clk 0:00:39.1]} 32... b3 {[%clk 0:00:08.6]} 33. Nd3 {[%clk 0:00:36.2]} 33...
Rd6 {[%clk 0:00:06.8]} 34. Ne5+ {[%clk 0:00:22.2]} 34... Kf6 {[%clk 0:00:06.9]}
35. Nd7+ {[%clk 0:00:16.1]} 35... Kg5 {[%clk 0:00:05.3]} 36. f4+ {[%clk
0:00:07.9]} 36... Kh6 {[%clk 0:00:04.1]} 37. Ne5 {[%clk 0:00:03.1]} 37... Rd1+
{[%clk 0:00:04.1]} 38. Kh2 {[%clk 0:00:01.9]} 38... Bd6 {[%clk 0:00:03.3]} 39.
Re7 {[%clk 0:00:02.8]} 39... Bxe7 {[%clk 0:00:03]} 0-1